[Event "UKR-ch Women 2020"]
[Site "Kherson"]
[Date "2020.12.10"]
[Round "5.3"]
[White "Doluhanova, Evgeniya"]
[Black "Osmak, Iulija"]
[Result "0-1"]
[ECO "B51"]
[WhiteElo "2229"]
[BlackElo "2438"]
[Annotator "RC"]
[PlyCount "80"]
[EventDate "2020.12.06"]
[EventType "swiss"]
[EventCountry "UKR"]
[SourceTitle "playchess.com"]
[Source "ChessBase"]
[SourceQuality "1"]
[TimeControl "40/5400+30:1800+30"]

1. e4 {[%emt 0:00:00]} c5 {[%emt 0:00:00]} 2. Nf3 {[%emt 0:00:12]} d6 {[%emt 0:00:00]} 3. Bb5+ {[%emt 0:06:50]} Nd7 {[%emt 0:00:00]} 4. Ba4 {[%emt 0:01:42]} Ngf6 {[%emt 0:02:04]} 5. c4 {[%emt 0:01:37]} Nxe4 {[%emt 0:09:58]} 6. O-O {[%emt 0:00:44]} e6 {[%emt 0:00:39]} 7. Re1 {[%emt 0:04:02]} Nef6 {[%emt 0:00:29]} 8. d4 {[%emt 0:01:00]} cxd4 {[%emt 0:14:43]} 9. Qxd4 {[%emt 0:22:19]} Be7 {[%emt 0:00:17]} 10. Bf4 {[%emt 0:10:45]} e5 {[%emt 0:09:32]} 11. Nxe5 {[%emt 0:05:03]} dxe5 {[%emt 0:00:26]} 12. Qxe5 {[%emt 0:00:34]} Kf8 {[%emt 0:03:00]} 13. Qe2 {[%emt 0:13:22]} Nc5 {[%emt 0:03:36]} 14. Bc2 {[%emt 0:05:22]} Bg4 {[%emt 0:03:01]} 15. f3 {[%emt 0:00:58]} Ne6 {[%emt 0:10:26]} 16. Be3 {[%emt 0:07:26]} Nd4 {[%emt 0:01:44]} 17. Qf2 {[%emt 0:00:26]} Nxc2 {[%emt 0:00:10]} 18. Qxc2 {[%emt 0:00:05]} Be6 {[%emt 0:01:11]} 19. Nd2 {[%emt 0:01:03]} Qc8 {[%emt 0:06:54]} 20. Kh1 {[%emt 0:14:03]} h5 {[%emt 0:07:46]} 21. h4 {[%emt 0:01:38]} Nd5 {[%emt 0:04:06]} 22. Bf2 {[%emt 0:00:33]} Rh6 {[%emt 0:01:37]} 23. Rac1 {[%emt 0:00:40]} Nb4 {[%emt 0:00:43]} 24. Qb3 {[%emt 0:00:15]} Rg6 {[%emt 0:01:29]} 25. Ne4 {[%emt 0:00:26]} Kg8 {[%emt 0:05:43]} 26. a3 {[%emt 0:00:57]} Nc6 {[%emt 0:00:23]} 27. Qb5 {[%emt 0:00:05]} a6 {[%emt 0:01:57]} 28. Qb6 {[%emt 0:01:08]} Ne5 {[%emt 0:03:19]} 29. Qd4 {[%emt 0:00:28]} Nc6 {[%emt 0:03:07]} 30. Qe3 {[%emt 0:00:13]} Bf5 {[%emt 0:01:01]} 31. b4 {[%emt 0:00:34]} Re6 {[%emt 0:01:18]} 32. b5 {[%emt 0:00:25]} Bxe4 {[%emt 0:00:06]} 33. fxe4 {[%emt 0:00:04]} Ne5 {[%emt 0:00:13]} 34. Qe2 {[%emt 0:00:45]} Ng4 {[%emt 0:00:15]} 35. Bg3 {[%emt 0:00:07]} Bxa3 {[%emt 0:01:13]} 36. Rc2 {[%emt 0:00:21]} Bd6 {[%emt 0:01:30]} 37. Bxd6 {[%emt 0:00:14]} Rxd6 {[%emt 0:00:04]} 38. c5 {[%emt 0:00:06]} Rf6 {[%emt 0:00:30]} 39. Rc3 {[%emt 0:01:47]} axb5 {[%emt 0:00:25]} 40. e5 {[%emt 0:00:00]} Rf2 {[%emt 0:00:00]} 0-1

[Event "UKR-ch Women 2020"]
[Site "Kherson"]
[Date "2020.12.10"]
[Round "5.10"]
[White "Mashchenko, Tamila"]
[Black "Yeshchenko, Uliana"]
[Result "1/2-1/2"]
[ECO "D36"]
[WhiteElo "1768"]
[BlackElo "1872"]
[Annotator "NA RC"]
[PlyCount "92"]
[EventDate "2020.12.06"]
[EventType "swiss"]
[EventCountry "UKR"]
[SourceTitle "playchess.com"]
[Source "ChessBase"]
[SourceQuality "1"]
[TimeControl "40/5400+30:1800+30"]

{[%evp 8,85,9,18,13,9,14,20,24,29,21,17,13,0,0,32767,0,-8,-2,-12,32767,32767,32767,32767,32767,-16,-14,-4,-19,-17,32767,32767,32767,32767,32767,32767,32767,32767,32767,32767,32767,32767,32767,32767,32767,-6,0,0,0,-199,32767,32767,32767,32767,-201,-207,-205,-259,-274,-281,-90,-89,32767,32767,-177,-260,-167,-172,-9,-18,32767,32767,-18,32767,32767,32767,32767,32767,-13,-22]} 1. c4 {[%emt 0:00:00]} e6 {[%emt 0:00:00]} 2. Nc3 {[%emt 0:00:00]} d5 {[%emt 0:00:00]} 3. cxd5 {[%emt 0:00:00]} exd5 {[%emt 0:00:00]} 4. d4 {[%emt 0:00:00]} Nf6 {[%emt 0:00:00]} 5. Bg5 {[%emt 0:00:00]} c6 {[%emt 0:00:10]} 6. Qc2 {[%emt 0:00:45]} Be7 {[%emt 0:02:08]} 7. e3 {[%emt 0:00:18]} Bg4 {[%emt 0:02:27]} 8. Bd3 {[%emt 0:01:48]} Bh5 {[%emt 0:05:03]} 9. h3 {[%emt 0:11:22]} Bg6 {[%emt 0:01:30]} 10. Nf3 {[%emt 0:05:35]} Bxd3 {[%emt 0:01:41]} 11. Qxd3 {[%emt 0:00:02]} Nbd7 {[%emt 0:01:40] [#]} 12. Rc1 $146 {[%emt 0:09:21]} ({Predecessor:} 12. O-O O-O 13. Bf4 Re8 14. Bh2 Nb6 15. Ne5 Bd6 16. Rfd1 Qc7 17. f4 Nfd7 18. a4 a5 19. b3 f6 20. Nf3 Re7 21. Kh1 Rae8 {0-1 (53) Tristan,L (2434)-Menna Barreto,F (2250) Mar del Plata 2014}) 12... Nb6 {[%emt 0:09:01]} 13. b3 {[%emt 0:05:00]} O-O {[%emt 0:06:44]} 14. O-O {[%emt 0:03:52]} Ne4 {[%emt 0:05:40]} 15. Bf4 {[%emt 0:05:22]} Re8 {[%emt 0:03:33]} 16. Nd2 {[%emt 0:03:27]} Nxd2 {[%emt 0:04:32]} 17. Qxd2 {[%emt 0:00:15]} Bb4 {[%emt 0:04:15]} 18. Qd3 {[%emt 0:03:46]} Bxc3 {[%emt 0:02:21]} 19. Rxc3 {[%emt 0:01:11]} Re6 {[%emt 0:02:07]} 20. Qf5 {[%emt 0:08:30]} Nd7 {[%emt 0:04:38]} 21. Rc2 {[%emt 0:03:33]} h6 {[%emt 0:00:55]} 22. Re2 {[%emt 0:03:46]} Qe7 {[%emt 0:02:11]} 23. Rfe1 {[%emt 0:02:25]} Re8 {[%emt 0:01:04]} 24. Bg3 {[%emt 0:04:44]} Re4 {[%emt 0:02:08]} 25. Qh5 {[%emt 0:02:13]} Nf6 {[%emt 0:04:52]} 26. Qf5 {[%emt 0:03:10]} Nh7 {[%emt 0:11:18]} (26... g6 $5 27. Qf3 $8 Nh5 $11) 27. Qh5 {[%emt 0:04:39]} Ng5 {[%emt 0:03:27]} 28. Be5 $2 {[%emt 0:03:01]} (28. f3 $11 {and White is okay.} Re6 29. h4) 28... Rh4 {[%emt 0:01:16]} 29. Qxh4 {[%emt 0:01:56]} Nf3+ 30. gxf3 {[%emt 0:00:02]} Qxh4 {[%emt 0:00:07]} 31. Kg2 {[%emt 0:01:17]} Re6 {[%emt 0:00:38]} 32. e4 {[%emt 0:02:04]} h5 {[%emt 0:04:12]} 33. Bg3 {[%emt 0:01:14]} Rg6 $2 {[%emt 0:00:22]} (33... Qe7 $19 {has better winning chances.} 34. Re3 dxe4 35. Rxe4 Rxe4 36. Rxe4 Qa3 37. Re8+ Kh7) 34. exd5 {[%emt 0:03:22]} Qxd4 {[%emt 0:01:50]} 35. Re4 {[%emt 0:01:48]} Qxd5 {[%emt 0:02:03]} 36. Re8+ {[%emt 0:02:00]} Kh7 {[%emt 0:00:04]} 37. R1e5 {[%emt 0:00:19] [#]} Qd7 $2 {[%emt 0:00:57]} (37... Qd2 $1 $19 38. Rxh5+ Rh6 39. Rxh6+ Kxh6) 38. R8e7 {[%emt 0:00:44]} Qd2 {[%emt 0:02:34]} 39. Rxh5+ {[%emt 0:01:09]} Rh6 {[%emt 0:00:06]} 40. Rxh6+ {[%emt 0:00:00]} Kxh6 {[%emt 0:00:00]} 41. Rxf7 {[%emt 0:06:05]} Qxa2 {[%emt 0:08:25]} 42. Rxb7 {[%emt 0:00:36]} Qa6 {[%emt 0:03:35]} 43. Rb4 $11 {[%emt 0:01:24]} Qa3 {[%emt 0:01:54]} 44. Rb7 {[%emt 0:03:54]} Qa6 {[%emt 0:01:37]} 45. Rb4 {[%emt 0:00:27]} Qa3 {[%emt 0:04:31]} 46. Rb7 {[%emt 0:01:28]} Qa6 {[%emt 0:00:31]} 1/2-1/2

[Event "UKR-ch Women 2020"]
[Site "Kherson"]
[Date "2020.12.11"]
[Round "6.8"]
[White "Yeshchenko, Uliana"]
[Black "Martynkova, Olena"]
[Result "1-0"]
[ECO "A46"]
[WhiteElo "1872"]
[BlackElo "2222"]
[Annotator "ChessBase"]
[PlyCount "173"]
[EventDate "2020.12.06"]
[EventType "swiss"]
[EventCountry "UKR"]
[SourceTitle "playchess.com"]
[Source "ChessBase"]
[SourceQuality "1"]
[TimeControl "40/5400+30:1800+30"]

1. d4 {[%emt 0:00:00]} Nf6 {[%emt 0:00:06]} 2. Nf3 {[%emt 0:00:00]} c5 {[%emt 0:01:56]} 3. c4 {[%emt 0:00:09]} cxd4 {[%emt 0:02:29]} 4. Nxd4 {[%emt 0:00:17]} b6 {[%emt 0:07:43]} 5. Nc3 {[%emt 0:03:19]} Bb7 {[%emt 0:01:48]} 6. f3 {[%emt 0:09:30]} d6 {[%emt 0:09:16]} 7. e4 {[%emt 0:01:30]} a6 {[%emt 0:02:04]} 8. Be3 {[%emt 0:01:35]} e6 {[%emt 0:02:23]} 9. Be2 {[%emt 0:00:45]} Nbd7 {[%emt 0:01:27]} 10. Rc1 {[%emt 0:02:41]} Be7 {[%emt 0:00:52]} 11. O-O {[%emt 0:03:05]} O-O {[%emt 0:02:01]} 12. Kh1 {[%emt 0:02:34]} Rc8 {[%emt 0:11:11]} 13. Bg1 {[%emt 0:08:25]} Kh8 {[%emt 0:02:50]} 14. b3 {[%emt 0:02:05]} Rg8 {[%emt 0:04:31]} 15. Bd3 {[%emt 0:10:04]} g5 {[%emt 0:03:17]} 16. Nde2 {[%emt 0:02:43]} Bc6 {[%emt 0:12:41]} 17. Ng3 {[%emt 0:08:32]} Rb8 {[%emt 0:09:28]} 18. a4 {[%emt 0:05:40]} Qf8 {[%emt 0:02:53]} 19. Qe2 {[%emt 0:04:23]} Ne5 {[%emt 0:01:56]} 20. Be3 {[%emt 0:06:54]} Qh6 {[%emt 0:06:36]} 21. Kg1 {[%emt 0:02:34]} Nfd7 {[%emt 0:02:40]} 22. Bc2 {[%emt 0:01:58]} Nf8 {[%emt 0:02:04]} 23. Nd1 {[%emt 0:06:25]} Nfg6 {[%emt 0:01:28]} 24. Nf2 {[%emt 0:00:59]} Nf4 {[%emt 0:01:27]} 25. Qd2 {[%emt 0:00:09]} Qh4 {[%emt 0:00:52]} 26. Ng4 {[%emt 0:02:32]} Nxg4 {[%emt 0:01:25]} 27. fxg4 {[%emt 0:00:02]} e5 {[%emt 0:01:53]} 28. Nf5 {[%emt 0:00:58]} Qxg4 {[%emt 0:00:12]} 29. Bxf4 {[%emt 0:01:01]} gxf4 {[%emt 0:00:42]} 30. Nxe7 {[%emt 0:00:11]} Rg5 {[%emt 0:01:02]} 31. Bd1 {[%emt 0:04:37]} Qd7 {[%emt 0:00:52]} 32. Nxc6 {[%emt 0:00:08]} Qxc6 {[%emt 0:00:04]} 33. Bf3 {[%emt 0:00:18]} Rg6 {[%emt 0:00:38]} 34. Rfd1 {[%emt 0:02:12]} Kg7 {[%emt 0:01:39]} 35. Qd5 {[%emt 0:00:50]} Qc5+ {[%emt 0:00:06]} 36. Qxc5 {[%emt 0:00:11]} bxc5 {[%emt 0:00:05]} 37. Rd3 {[%emt 0:00:24]} a5 {[%emt 0:00:52]} 38. h3 {[%emt 0:01:13]} Rb6 {[%emt 0:01:31]} 39. Bg4 {[%emt 0:00:26]} Kf8 {[%emt 0:00:41]} 40. Bf5 {[%emt 0:00:00]} Rg7 {[%emt 0:00:00]} 41. Bd7 {[%emt 0:01:06]} Ke7 {[%emt 0:04:43]} 42. Bb5 {[%emt 0:00:08]} h5 {[%emt 0:03:11]} 43. h4 {[%emt 0:07:42]} Rg4 {[%emt 0:02:28]} 44. Rcc3 {[%emt 0:00:43]} Rb8 {[%emt 0:02:01]} 45. g3 {[%emt 0:06:36]} Rbg8 {[%emt 0:01:47]} 46. Kf2 {[%emt 0:04:48]} f5 {[%emt 0:02:42]} 47. Bc6 {[%emt 0:01:00]} fxg3+ {[%emt 0:07:45]} 48. Rxg3 {[%emt 0:04:23]} f4 {[%emt 0:00:04]} 49. Rxg4 {[%emt 0:01:31]} hxg4 {[%emt 0:00:04]} 50. Rc1 {[%emt 0:00:46]} Rh8 {[%emt 0:01:13]} 51. Rh1 {[%emt 0:00:05]} Rh5 {[%emt 0:01:59]} 52. Bd5 {[%emt 0:00:33]} Kf6 {[%emt 0:01:13]} 53. Bb7 {[%emt 0:00:50]} Rh8 {[%emt 0:02:18]} 54. Bc6 {[%emt 0:00:29]} Rh7 {[%emt 0:05:11]} 55. Kg2 {[%emt 0:01:00]} Rc7 {[%emt 0:00:32]} 56. Bb5 {[%emt 0:00:27]} Rh7 {[%emt 0:00:29]} 57. Be8 {[%emt 0:02:47]} Rb7 {[%emt 0:01:23]} 58. Bb5 {[%emt 0:00:28]} Rh7 {[%emt 0:00:10]} 59. Kf2 {[%emt 0:00:50]} Ke7 {[%emt 0:01:06]} 60. h5 {[%emt 0:01:59]} Kf6 {[%emt 0:01:02]} 61. h6 {[%emt 0:00:05]} Kg5 {[%emt 0:00:29]} 62. Bd7 {[%emt 0:00:23]} g3+ {[%emt 0:00:39]} 63. Kg2 {[%emt 0:00:35]} Rxh6 {[%emt 0:00:07]} 64. Rxh6 {[%emt 0:00:04]} Kxh6 {[%emt 0:00:04]} 65. Bg4 {[%emt 0:00:11]} Kg5 {[%emt 0:00:49]} 66. Bd1 {[%emt 0:00:51]} Kf6 {[%emt 0:01:13]} 67. Kh3 {[%emt 0:00:06]} Kg6 {[%emt 0:00:33]} 68. Be2 {[%emt 0:01:19]} Kh6 {[%emt 0:00:23]} 69. Bf1 {[%emt 0:00:38]} Kg6 {[%emt 0:00:35]} 70. Kg4 {[%emt 0:00:15]} Kf6 {[%emt 0:00:16]} 71. Bg2 {[%emt 0:00:14]} Kg6 {[%emt 0:00:04]} 72. Bf3 {[%emt 0:00:07]} Kf6 {[%emt 0:01:12]} 73. Kh5 {[%emt 0:00:05]} Kf7 {[%emt 0:00:24]} 74. Kg5 {[%emt 0:00:04]} Kg7 {[%emt 0:00:10]} 75. Kf5 {[%emt 0:00:05]} Kf7 {[%emt 0:00:17]} 76. Bh1 {[%emt 0:00:50]} Ke7 {[%emt 0:00:04]} 77. Kg6 {[%emt 0:00:49]} Ke6 {[%emt 0:00:10]} 78. Kg7 {[%emt 0:00:08]} Ke7 {[%emt 0:00:07]} 79. Bf3 {[%emt 0:00:09]} Ke6 {[%emt 0:00:26]} 80. Kf8 {[%emt 0:03:40]} Kf6 {[%emt 0:00:06]} 81. Ke8 {[%emt 0:00:12]} Kg5 {[%emt 0:00:05]} 82. Ke7 {[%emt 0:00:07]} g2 {[%emt 0:00:09]} 83. Bxg2 {[%emt 0:00:05]} Kg4 {[%emt 0:00:05]} 84. Kxd6 {[%emt 0:00:06]} Kg3 {[%emt 0:00:07]} 85. Bf1 {[%emt 0:00:15]} Kf2 {[%emt 0:01:00]} 86. Kxe5 {[%emt 0:00:07]} f3 {[%emt 0:00:04]} 87. Kf4 {[%emt 0:00:06]} 1-0

[Event "UKR-ch Women 2020"]
[Site "Kherson"]
[Date "2020.12.11"]
[Round "6.9"]
[White "Mashchenko, Tamila"]
[Black "Tsirulnik, Maritsa"]
[Result "0-1"]
[ECO "A13"]
[WhiteElo "1768"]
[BlackElo "2139"]
[Annotator "ChessBase"]
[PlyCount "132"]
[EventDate "2020.12.06"]
[EventType "swiss"]
[EventCountry "UKR"]
[SourceTitle "playchess.com"]
[Source "ChessBase"]
[SourceQuality "1"]
[TimeControl "40/5400+30:1800+30"]

1. c4 {[%emt 0:00:00]} e6 {[%emt 0:00:00]} 2. Nc3 {[%emt 0:00:00]} d5 {[%emt 0:00:00]} 3. cxd5 {[%emt 0:00:00]} exd5 {[%emt 0:00:00]} 4. d4 {[%emt 0:00:00]} c6 {[%emt 0:00:00]} 5. Nf3 {[%emt 0:02:10]} Bd6 {[%emt 0:02:13]} 6. Bg5 {[%emt 0:02:49]} f6 {[%emt 0:00:24]} 7. Bh4 {[%emt 0:03:24]} Ne7 {[%emt 0:00:09]} 8. Bg3 {[%emt 0:03:06]} Bf5 {[%emt 0:06:01]} 9. Bxd6 {[%emt 0:02:11]} Qxd6 {[%emt 0:00:04]} 10. e3 {[%emt 0:01:39]} Qb4 {[%emt 0:09:38]} 11. Qd2 {[%emt 0:06:01]} Nd7 {[%emt 0:07:07]} 12. Be2 {[%emt 0:07:35]} a5 {[%emt 0:09:06]} 13. O-O {[%emt 0:09:28]} a4 {[%emt 0:08:44]} 14. Nb5 {[%emt 0:14:08]} Qxd2 {[%emt 0:01:56]} 15. Nd6+ {[%emt 0:00:28]} Kd8 {[%emt 0:00:14]} 16. Nxd2 {[%emt 0:00:02]} Kc7 {[%emt 0:03:41]} 17. Nxf5 {[%emt 0:00:18]} Nxf5 {[%emt 0:00:05]} 18. Bd3 Nd6 {[%emt 0:00:15]} 19. Rac1 {[%emt 0:01:40]} f5 {[%emt 0:03:10]} 20. f3 {[%emt 0:10:04]} Rhe8 {[%emt 0:06:15]} 21. Kf2 {[%emt 0:02:12]} b5 {[%emt 0:01:29]} 22. Rc2 {[%emt 0:02:40]} Kb6 {[%emt 0:05:28]} 23. Rfc1 {[%emt 0:03:38]} Rac8 {[%emt 0:01:03]} 24. h3 {[%emt 0:06:20]} c5 {[%emt 0:09:56]} 25. g4 {[%emt 0:01:36]} g6 {[%emt 0:00:37]} 26. gxf5 {[%emt 0:04:53]} c4 {[%emt 0:04:35]} 27. Be2 {[%emt 0:05:02]} Nxf5 {[%emt 0:00:24]} 28. Nf1 {[%emt 0:00:23]} Re7 {[%emt 0:03:14]} 29. b3 {[%emt 0:02:31]} Rce8 {[%emt 0:08:17]} 30. bxa4 {[%emt 0:00:13]} b4 {[%emt 0:00:25]} 31. Rb2 {[%emt 0:02:00]} Ka5 {[%emt 0:00:09]} 32. Rcb1 {[%emt 0:01:33]} Rb8 {[%emt 0:02:42]} 33. Bd1 {[%emt 0:00:33]} Rb6 {[%emt 0:01:14]} 34. Bc2 {[%emt 0:02:14]} Nb8 {[%emt 0:00:55]} 35. Rd1 {[%emt 0:02:56]} Rf6 {[%emt 0:02:42]} 36. Rdb1 {[%emt 0:00:40]} Nc6 {[%emt 0:00:12]} 37. Rd1 {[%emt 0:00:31]} Rfe6 {[%emt 0:02:28]} 38. Bxf5 {[%emt 0:01:45]} gxf5 {[%emt 0:00:04]} 39. Ng3 {[%emt 0:00:51]} Rf6 {[%emt 0:03:20]} 40. Nh5 {[%emt 0:00:00]} Rd6 {[%emt 0:00:00]} 41. Rg1 {[%emt 0:06:11]} Kxa4 {[%emt 0:01:38]} 42. Nf4 {[%emt 0:02:54]} Ka3 {[%emt 0:00:53]} 43. Re2 {[%emt 0:02:15]} Na7 {[%emt 0:02:57]} 44. Rg5 {[%emt 0:02:48]} Nb5 {[%emt 0:08:49]} 45. Rxf5 {[%emt 0:03:39]} Nc3 {[%emt 0:00:20]} 46. Rd2 {[%emt 0:00:23]} Nxa2 {[%emt 0:01:05]} 47. Nxd5 {[%emt 0:08:23]} Ra7 {[%emt 0:00:19]} 48. Nf4 {[%emt 0:04:40]} c3 {[%emt 0:04:41]} 49. Re2 {[%emt 0:00:29]} b3 {[%emt 0:01:39]} 50. Nd3 {[%emt 0:01:11]} c2 {[%emt 0:01:03]} 51. Rc5 {[%emt 0:01:30]} Nb4 {[%emt 0:02:07]} 52. Nxb4 {[%emt 0:00:55]} Kxb4 {[%emt 0:00:03]} 53. Rcxc2 {[%emt 0:00:19]} bxc2 {[%emt 0:00:05]} 54. Rxc2 {[%emt 0:00:01]} Ra3 {[%emt 0:02:20]} 55. Rc7 {[%emt 0:01:27]} h6 {[%emt 0:00:05]} 56. Re7 {[%emt 0:00:23]} Kc4 {[%emt 0:00:41]} 57. f4 {[%emt 0:00:34]} Rd5 {[%emt 0:02:27]} 58. Kf3 {[%emt 0:00:44]} Rxd4 {[%emt 0:00:23]} 59. f5 {[%emt 0:01:23]} Kc5 {[%emt 0:01:32]} 60. f6 {[%emt 0:00:58]} Rd6 {[%emt 0:00:36]} 61. Re5+ {[%emt 0:01:06]} Rd5 {[%emt 0:01:03]} 62. Re6 {[%emt 0:00:10]} Rf5+ {[%emt 0:02:31]} 63. Kg4 {[%emt 0:00:05]} Rf1 {[%emt 0:01:13]} 64. e4 {[%emt 0:00:46]} Kd4 {[%emt 0:00:41]} 65. h4 {[%emt 0:00:27]} Ra5 {[%emt 0:00:38]} 66. f7 {[%emt 0:00:53]} h5+ {[%emt 0:00:08]} 0-1

[Event "UKR-ch Women 2020"]
[Site "Kherson"]
[Date "2020.12.12"]
[Round "7.1"]
[White "Buksa, Nataliya"]
[Black "Hryzlova, Sofiia"]
[Result "1-0"]
[ECO "C02"]
[WhiteElo "2410"]
[BlackElo "2064"]
[Annotator "ChessBase"]
[PlyCount "107"]
[EventDate "2020.12.06"]
[EventType "swiss"]
[EventCountry "UKR"]
[SourceTitle "playchess.com"]
[Source "ChessBase"]
[SourceQuality "1"]
[TimeControl "40/5400+30:1800+30"]

1. e4 {[%emt 0:00:00]} e6 {[%emt 0:01:05]} 2. d4 {[%emt 0:00:00]} d5 {[%emt 0:00:14]} 3. e5 {[%emt 0:00:00]} c5 {[%emt 0:00:45]} 4. c3 {[%emt 0:00:00]} Nc6 {[%emt 0:00:06]} 5. Nf3 {[%emt 0:00:00]} Nge7 {[%emt 0:00:24]} 6. Bd3 {[%emt 0:01:48]} cxd4 {[%emt 0:03:10]} 7. cxd4 {[%emt 0:00:29]} Nf5 {[%emt 0:00:16]} 8. Bxf5 {[%emt 0:01:45]} exf5 {[%emt 0:00:08]} 9. Nc3 {[%emt 0:00:03]} h6 {[%emt 0:00:25]} 10. h4 {[%emt 0:15:08]} Bb4 {[%emt 0:17:55]} 11. Kf1 {[%emt 0:04:01]} O-O {[%emt 0:05:56]} 12. Ne2 {[%emt 0:03:09]} Re8 {[%emt 0:06:35]} 13. Nf4 {[%emt 0:04:57]} Bf8 {[%emt 0:15:44]} 14. Rh3 {[%emt 0:05:08]} b6 {[%emt 0:01:20]} 15. Rg3 {[%emt 0:02:21]} Ba6+ {[%emt 0:11:44]} 16. Kg1 {[%emt 0:00:03]} Rc8 {[%emt 0:00:29]} 17. Bd2 {[%emt 0:03:56]} Qd7 {[%emt 0:03:59]} 18. Nh5 {[%emt 0:02:24]} Re6 {[%emt 0:07:18]} 19. Nf6+ {[%emt 0:01:11]} Rxf6 {[%emt 0:00:07]} 20. exf6 {[%emt 0:00:03]} g6 {[%emt 0:00:45]} 21. Bf4 {[%emt 0:04:04]} Qe6 {[%emt 0:01:51]} 22. Qa4 {[%emt 0:19:29]} Bb7 {[%emt 0:04:19]} 23. Be5 {[%emt 0:08:33]} f4 {[%emt 0:00:35]} 24. Bxf4 {[%emt 0:00:46]} Qxf6 {[%emt 0:00:08]} 25. Be5 {[%emt 0:01:33]} Qf5 {[%emt 0:00:27]} 26. Qb3 {[%emt 0:03:11]} Na5 {[%emt 0:02:30]} 27. Qe3 {[%emt 0:00:04]} Nc4 {[%emt 0:03:19]} 28. Qf4 {[%emt 0:00:04]} Qxf4 {[%emt 0:00:06]} 29. Bxf4 {[%emt 0:00:02]} Nxb2 {[%emt 0:00:15]} 30. Ne5 {[%emt 0:01:35]} h5 {[%emt 0:03:52]} 31. Rf3 {[%emt 0:03:24]} Nc4 {[%emt 0:03:46]} 32. Bg3 {[%emt 0:04:31]} Nd6 {[%emt 0:00:41]} 33. Nd7 {[%emt 0:00:47]} Ne4 {[%emt 0:02:05]} 34. Nxf8 {[%emt 0:00:58]} Kxf8 {[%emt 0:00:13]} 35. Bf4 {[%emt 0:00:20]} Rc4 {[%emt 0:00:55]} 36. Rc1 {[%emt 0:00:40]} a6 {[%emt 0:02:05]} 37. a4 {[%emt 0:00:54]} Bc6 {[%emt 0:00:30]} 38. Rb1 {[%emt 0:05:52]} b5 {[%emt 0:00:29]} 39. axb5 {[%emt 0:00:04]} Bxb5 {[%emt 0:00:27]} 40. Ra3 {[%emt 0:00:00]} Rc6 {[%emt 0:00:00]} 41. Re3 {[%emt 0:10:03]} Rc2 {[%emt 0:05:15]} 42. f3 {[%emt 0:04:20]} Nc3 {[%emt 0:03:05]} 43. Bd6+ {[%emt 0:00:19]} Kg8 {[%emt 0:00:13]} 44. Rbe1 {[%emt 0:00:43]} Ne2+ {[%emt 0:05:10]} 45. Kh1 {[%emt 0:00:06]} Kg7 {[%emt 0:01:53]} 46. Re7 {[%emt 0:02:26]} Ra2 {[%emt 0:03:22]} 47. Be5+ {[%emt 0:02:20]} Kf8 {[%emt 0:00:57]} 48. Bf6 {[%emt 0:00:04]} Rc2 {[%emt 0:01:13]} 49. Rb7 {[%emt 0:00:42]} Ke8 {[%emt 0:00:52]} 50. Kh2 {[%emt 0:01:55]} Bd3 {[%emt 0:01:43]} 51. Re7+ {[%emt 0:01:12]} Kf8 {[%emt 0:00:35]} 52. Rd7 {[%emt 0:00:52]} Bb5 {[%emt 0:01:49]} 53. Rxd5 {[%emt 0:00:41]} Ra2 {[%emt 0:04:44]} 54. Rd8+ {[%emt 0:00:31]} 1-0

[Event "UKR-ch Women 2020"]
[Site "Kherson"]
[Date "2020.12.12"]
[Round "7.2"]
[White "Babiy, Olga"]
[Black "Osmak, Iulija"]
[Result "1-0"]
[ECO "B66"]
[WhiteElo "2271"]
[BlackElo "2438"]
[Annotator "ChessBase"]
[PlyCount "87"]
[EventDate "2020.12.06"]
[EventType "swiss"]
[EventCountry "UKR"]
[SourceTitle "playchess.com"]
[Source "ChessBase"]
[SourceQuality "1"]
[TimeControl "40/5400+30:1800+30"]

1. e4 {[%emt 0:00:00]} c5 {[%emt 0:00:00]} 2. Nf3 {[%emt 0:00:00]} Nc6 {[%emt 0:00:00]} 3. d4 {[%emt 0:00:01]} cxd4 {[%emt 0:00:48]} 4. Nxd4 {[%emt 0:00:04]} Nf6 {[%emt 0:00:15]} 5. Nc3 {[%emt 0:00:08]} d6 {[%emt 0:00:10]} 6. Bg5 {[%emt 0:00:45]} e6 {[%emt 0:00:10]} 7. Qd2 {[%emt 0:01:07]} a6 {[%emt 0:01:28]} 8. O-O-O {[%emt 0:00:55]} h6 {[%emt 0:00:13]} 9. Nxc6 {[%emt 0:00:16]} bxc6 {[%emt 0:00:07]} 10. Bf4 {[%emt 0:00:08]} d5 {[%emt 0:00:07]} 11. Qe3 {[%emt 0:02:08]} Bb4 {[%emt 0:00:12]} 12. a3 {[%emt 0:01:43]} Ba5 {[%emt 0:00:08]} 13. Be2 {[%emt 0:05:19]} O-O {[%emt 0:01:20]} 14. e5 {[%emt 0:08:13]} Nd7 {[%emt 0:00:10]} 15. g4 {[%emt 0:10:35]} f6 {[%emt 0:08:06]} 16. exf6 {[%emt 0:16:53]} Qxf6 {[%emt 0:07:49]} 17. Bg3 {[%emt 0:00:05]} c5 {[%emt 0:13:59]} 18. Na4 {[%emt 0:03:48]} d4 {[%emt 0:33:54]} 19. Qe4 {[%emt 0:07:46]} Ra7 {[%emt 0:02:28]} 20. Bc4 {[%emt 0:06:08]} Re8 {[%emt 0:02:08]} 21. Qc6 {[%emt 0:01:19]} Qe7 {[%emt 0:04:13]} 22. Rhe1 {[%emt 0:07:04]} Bxe1 {[%emt 0:01:27]} 23. Rxe1 {[%emt 0:00:02]} Nf8 {[%emt 0:05:57]} 24. Nxc5 {[%emt 0:04:00]} Bd7 {[%emt 0:01:59]} 25. Qb6 {[%emt 0:00:15]} Raa8 {[%emt 0:01:13]} 26. Nxa6 {[%emt 0:04:24]} Qg5+ {[%emt 0:03:58]} 27. f4 {[%emt 0:01:41]} Qxg4 {[%emt 0:00:06]} 28. Qxd4 {[%emt 0:00:07]} Red8 {[%emt 0:01:04]} 29. Qe5 {[%emt 0:02:23]} Rdc8 {[%emt 0:04:09]} 30. Bd3 {[%emt 0:03:04]} Ba4 {[%emt 0:04:31]} 31. Nc5 {[%emt 0:04:08]} Ra5 {[%emt 0:02:39]} 32. b4 {[%emt 0:00:08]} Ra7 {[%emt 0:00:34]} 33. Bf2 {[%emt 0:03:55]} Qf3 {[%emt 0:00:29]} 34. Bd4 {[%emt 0:01:15]} Be8 {[%emt 0:00:34]} 35. Rg1 {[%emt 0:01:24]} Rcc7 {[%emt 0:00:02]} 36. Kb2 {[%emt 0:01:07]} Bg6 {[%emt 0:00:46]} 37. Rxg6 {[%emt 0:00:32]} Nxg6 {[%emt 0:00:10]} 38. Qxe6+ {[%emt 0:00:16]} Rf7 {[%emt 0:00:54]} 39. Qxg6 {[%emt 0:01:10]} Qd5 {[%emt 0:00:36]} 40. Ne6 {[%emt 0:00:00]} Rfe7 {[%emt 0:00:00]} 41. Qh7+ {[%emt 0:05:11]} Kf7 {[%emt 0:00:30]} 42. f5 {[%emt 0:00:11]} Ra8 {[%emt 0:02:17]} 43. Qg6+ {[%emt 0:01:27]} Kg8 {[%emt 0:00:03]} 44. Bxg7 {[%emt 0:00:17]} 1-0